[Event "German Bundesliga 2024-25"]
[Site "Germany"]
[Date "2025.01.12"]
[Round "6.12"]
[White "Dragnev, Valentin"]
[Black "Nisipeanu, Liviu-Dieter"]
[Result "0-1"]
[Annotator "TA"]
[ECO "C55"]
[WhiteElo "2566"]
[BlackElo "2596"]
[PlyCount "76"]
[EventDate "2024.09.27"]
[EventType "team-tourn"]
[EventCountry "GER"]
[SourceTitle "playchess.com"]
[Source "ChessBase"]
[SourceQuality "1"]
[WhiteTeam "Bayern Muenchen"]
[BlackTeam "TU Dresden"]
[TimeControl "40/5400+30:1800+30"]

{[%evp 15,76,40,42,24,31,17,25,30,27,0,0,0,8,5,13,0,0,0,0,-82,-84,-87,-77,-79,-85,-84,-68,-76,-41,-35,0,0,0,-90,-88,-93,-87,-98,-75,-90,-124,-104,-94,-1127,0,0,0,-340,-320,-1092,-1039,-701,-975,-1049,-1095,-830,-371,-1093,-1097,-29997,-29998,-29998,-29999]} 1. e4 {[%emt 0:00:12]} e5 {[%emt 0:00:04]} 2. Nf3 {[%emt 0:00:07]} Nc6 {[%emt 0:00:05]} 3. Bc4 {[%emt 0:00:11]} Nf6 {[%emt 0:00:08]} 4. d3 {[%emt 0:00:05]} Be7 {[%emt 0:00:05]} 5. O-O {[%emt 0:00:16]} O-O {[%emt 0:00:13]} 6. Re1 {[%emt 0:00:14]} d6 {[%emt 0:00:29]} 7. a4 {[%emt 0:00:08]} Na5 {[%emt 0:11:25]} 8. Ba2 {[%emt 0:00:41]} c5 {[%emt 0:00:05]} 9. Nc3 {[%emt 0:02:14]} Nc6 {[%emt 0:00:59]} 10. Bg5 {[%emt 0:00:21]} Kh8 {[%emt 0:10:15]} (10... Nd4 {feels hotter.} 11. Nb5 Nxf3+ 12. Qxf3 Nd5) 11. h3 {[%emt 0:11:48]} Be6 {[%emt 0:14:57]} 12. Bxf6 {[%emt 0:12:31]} Bxf6 {[%emt 0:00:07]} 13. Nd5 {[%emt 0:00:12]} g6 {[%emt 0:01:58]} 14. c3 {[%emt 0:05:16]} Bg7 {[%emt 0:02:37]} 15. Ne3 {[%emt 0:01:36]} Bd7 {[%emt 0:14:17]} 16. Rb1 {[%emt 0:02:20]} f5 {[%emt 0:03:33]} 17. b4 {[%emt 0:01:17]} (17. Bc4 $11) 17... cxb4 $17 {[%emt 0:00:30]} 18. cxb4 {[%emt 0:00:06]} fxe4 $1 {[%emt 0:03:22]} 19. dxe4 {[%emt 0:00:26]} Nd4 {[%emt 0:05:34]} 20. Nxd4 {[%emt 0:04:07]} exd4 {[%emt 0:00:04]} 21. Nc4 {[%emt 0:00:31]} Qh4 {[%emt 0:06:55]} 22. Qd2 {[%emt 0:05:36]} Be5 {[%emt 0:01:38]} 23. b5 {[%emt 0:10:08]} Rf6 {[%emt 0:06:21]} 24. g3 {[%emt 0:10:35]} (24. Rf1 $11 {keeps the balance.}) 24... Bxg3 {[%emt 0:09:19]} (24... Qxh3 25. Nxe5 dxe5 26. Qg5 $16) 25. fxg3 {[%emt 0:00:24]} Qxg3+ {[%emt 0:00:05]} 26. Qg2 {[%emt 0:00:21]} Qh4 {[%emt 0:00:04]} (26... Qxg2+ $2 27. Kxg2 Raf8 28. Rb2 $18) 27. e5 {[%emt 0:26:47]} Bxh3 {[%emt 0:00:11]} 28. Re4 {[%emt 0:00:05]} (28. Qxb7 Qg3+ 29. Kh1 Rf2 30. Qxa8+ Kg7) 28... Qh5 {[%emt 0:00:34]} 29. Qh2 $2 {[%emt 0:03:19][%mdl 8192] [#]} (29. Qg3 $17 Rf3 30. Qh4) 29... Rf3 $2 {[%emt 0:03:52]} (29... Rf5 $1 $19 {( -> ...Qf3)} 30. Nxd6 Rg5+ 31. Kf2 Rf8+ 32. Bf7 Rc8 (32... Rg2+ 33. Qxg2 Bxg2 34. Kxg2 $11)) 30. exd6 $11 {[%emt 0:00:49]} Rf5 $1 {[%emt 0:02:08]} (30... Qg5+ $6 31. Kh1 Rg3 32. Rg1 $16 (32. Rxd4 $2 Bg2+ $19)) 31. Ne5 $2 {[%emt 0:01:36][%mdl 8192]} (31. Rxd4 $2 Raf8 $19) (31. Re3 $1 $11 Rg5+ (31... dxe3 32. Qb2+ Kg8 33. Nxe3+ Rf7 34. Qf6 $14) 32. Rg3) 31... Raf8 $19 {[%emt 0:00:34]} 32. Nf7+ $2 {[%emt 0:00:38]} (32. Qg3 Rf1+ (32... Rg5 $2 33. Rg4 $19) 33. Rxf1 Rxf1+ 34. Kh2 Bg4+) (32. Bf7 Kg7 (32... Rg5+ 33. Kf2 $11) 33. a5) 32... R8xf7 $19 {[%emt 0:00:06]} 33. Bxf7 {[%emt 0:00:12] [#]} Qf3 $1 {[%emt 0:01:23]} 34. Re8+ {[%emt 0:01:48]} Kg7 {[%emt 0:00:05]} 35. Qd2 {[%emt 0:00:15]} Qg4+ {[%emt 0:02:02]} ({Weaker is} 35... Kxf7 36. Re7+ Kg8 37. Re8+ Kg7 38. Re7+ (38. Qxd4+ $2 Kh6 $19) 38... Kg8 39. Re8+ Kg7 40. Re7+ Kg8 $11) (35... Qg3+ $142 36. Kh1 Qh4 37. Bxg6 Bg4+ 38. Kg1 Rg5) 36. Kh1 $2 {[%emt 0:00:45]} (36. Kh2 Rh5 (36... Kxf7 $2 {loses.} 37. Rbe1 $18) (36... Rxf7 37. Re7 $16) 37. Bxg6 Qxg6 38. Qxd4+ Kf7 39. Re7+ Kg8 40. Rg7+ Qxg7 41. Qxg7+ Kxg7 42. Kg3) 36... Rh5 $19 {[%emt 0:01:14]} 37. Bxg6 {[%emt 0:00:18]} Bg2+ {[%emt 0:00:15]} 38. Kg1 {[%emt 0:00:03]} Rh1+ {[%emt 0:00:05]} 0-1

[Event "German Bundesliga 2024-25"]
[Site "Germany"]
[Date "2025.01.12"]
[Round "6.13"]
[White "Maurizzi, Marc`Andria"]
[Black "Esipenko, Andrey"]
[Result "1/2-1/2"]
[Annotator "TA"]
[ECO "C55"]
[WhiteElo "2585"]
[BlackElo "2682"]
[PlyCount "72"]
[EventDate "2024.09.27"]
[EventType "team-tourn"]
[EventCountry "GER"]
[SourceTitle "playchess.com"]
[Source "ChessBase"]
[SourceQuality "1"]
[WhiteTeam "St. Pauli"]
[BlackTeam "Duesseldorf"]
[TimeControl "40/5400+30:1800+30"]

{[%evp 11,72,19,14,16,10,5,4,10,8,8,19,23,29,8,9,9,12,8,11,8,20,0,0,0,0,0,0,0,0,0,0,0,43,48,33,19,52,0,0,0,0,0,0,-85,0,0,0,0,22,0,0,0,0,0,0,0,0,0,0,0,0,0,0]} 1. e4 {[%emt 0:00:15]} e5 {[%emt 0:00:18]} 2. Nf3 {[%emt 0:00:53]} Nc6 {[%emt 0:00:09]} 3. Bc4 {[%emt 0:00:16]} Nf6 {[%emt 0:00:12]} 4. d3 {[%emt 0:00:07][%cal Bd2d3,Bd3c4,Bc4d5][%mdl 32]} Be7 {[%emt 0:00:13]} 5. O-O {[%emt 0:01:00]} O-O {[%emt 0:00:09]} 6. Nc3 {[%emt 0:00:17]} d6 {[%emt 0:00:08]} 7. a4 {[%emt 0:00:04]} Be6 {[%emt 0:03:24]} 8. Re1 {[%emt 0:00:51]} Bxc4 {[%emt 0:02:38]} 9. dxc4 {[%emt 0:00:20]} a5 {[%emt 0:00:08]} 10. Nd5 {[%emt 0:00:12]} Nxd5 {[%emt 0:03:41]} 11. cxd5 {[%emt 0:00:31]} Nb8 {[%emt 0:00:47]} 12. Ra3 {[%emt 0:00:15]} Qd7 {[%emt 0:07:05]} 13. Rc3 {[%emt 0:26:39]} Na6 {[%emt 0:01:29]} 14. b3 {[%emt 0:07:23]} f5 {[%emt 0:03:22]} 15. exf5 {[%emt 0:00:57]} Rxf5 {[%emt 0:10:23]} 16. Nd2 {[%emt 0:06:56]} Bg5 {[%emt 0:04:09]} 17. Ne4 {[%emt 0:02:31]} Bxc1 {[%emt 0:00:14]} 18. Qxc1 {[%emt 0:00:02]} b6 {[%emt 0:00:13]} 19. Qd2 {[%emt 0:04:53]} Rf4 {[%emt 0:04:37]} 20. Ng5 {[%emt 0:07:07]} Nc5 {[%emt 0:10:25]} 21. Ne6 {[%emt 0:00:46]} Rb4 {[%emt 0:03:50]} 22. f4 {[%emt 0:09:17]} exf4 {[%emt 0:17:32]} 23. Rf3 {[%emt 0:03:28]} Qf7 {[%emt 0:02:10]} 24. c3 {[%emt 0:17:12]} ({Better is} 24. Nxf4 $14 Re4 25. Rxe4 Nxe4 26. Qe3) 24... Re4 $1 $11 {[%emt 0:01:00]} (24... Rxb3 $6 25. Nxf4 (25. Qxf4 $2 Qxf4 26. Nxf4 Nxa4 $19) (25. Rxf4 Qg6 $11) 25... Re8 (25... Nxa4 $2 26. Ne6 $18) 26. Ne6 $16) (24... Nxb3 $2 25. Qa2 $18) 25. Rxe4 {[%emt 0:01:06]} Nxe4 {[%emt 0:00:02]} 26. Qd4 {[%emt 0:05:21]} Nc5 {[%emt 0:01:54]} 27. Nxf4 {[%emt 0:02:22]} (27. Qc4 $11) 27... Qf5 {[%emt 0:01:56]} (27... Nxb3 $17 28. Qe3 Re8) 28. b4 {[%emt 0:01:48]} axb4 {[%emt 0:06:28]} (28... Nxa4 $6 29. Ne6 Qe5 30. Qf2 $18 (30. Nxc7 Qxd4+ 31. cxd4 Rc8 $17)) 29. cxb4 {[%emt 0:00:00]} Rxa4 {[%emt 0:00:56]} 30. Qb2 {[%emt 0:02:07][%cal Of4e6] Hoping for Ne6!. Inhibits Qb1+.} (30. Ne6 {looks sharper.} Nxe6 31. Qd1 Nf4 32. Qxa4 Qb1+ 33. Kf2) 30... Qe5 {[%emt 0:06:21]} 31. Qxe5 {[%emt 0:00:07]} dxe5 {[%emt 0:00:03]} 32. bxc5 {[%emt 0:00:22]} exf4 {[%emt 0:00:19]} (32... Rxf4 $2 {loses.} 33. Rxf4 bxc5 34. Rc4 $18) 33. cxb6 {[%emt 0:00:29]} cxb6 {[%emt 0:00:07] KR-KR. Black is a pawn up.} 34. Rb3 {[%emt 0:00:38]} Rd4 {[%emt 0:00:34]} 35. Rxb6 {[%emt 0:00:08]} Rxd5 {[%emt 0:00:06]} 36. Kf2 {[%emt 0:00:32]} Kf7 {[%emt 0:01:40]} 1/2-1/2

[Event "German Bundesliga 2024-25"]
[Site "Germany"]
[Date "2025.01.12"]
[Round "6.13"]
[White "Michalik, Peter"]
[Black "Alonso Rosell, Alvar"]
[Result "1-0"]
[Annotator "TA"]
[ECO "D37"]
[WhiteElo "2562"]
[BlackElo "2532"]
[PlyCount "71"]
[EventDate "2024.09.27"]
[EventType "team-tourn"]
[EventCountry "GER"]
[SourceTitle "playchess.com"]
[Source "ChessBase"]
[SourceQuality "1"]
[WhiteTeam "TU Dresden"]
[BlackTeam "Bayern Muenchen"]
[TimeControl "40/5400+30:1800+30"]

{[%evp 9,71,19,32,31,27,30,46,47,52,36,45,36,56,40,38,35,47,43,42,31,22,23,20,36,25,24,41,38,43,39,45,33,46,43,51,39,43,46,48,39,64,57,69,37,83,79,94,97,99,101,133,133,133,133,123,123,174,173,173,192,411,370,335,334]} 1. d4 {[%emt 0:00:03]} Nf6 {[%emt 0:00:04]} 2. c4 {[%emt 0:00:07]} e6 {[%emt 0:00:05]} 3. Nf3 {[%emt 0:00:13]} d5 {[%emt 0:00:04]} 4. Nc3 {[%emt 0:00:21]} h6 {[%emt 0:00:06]} 5. g3 {[%emt 0:02:39]} Be7 {[%emt 0:00:30]} 6. Bg2 {[%emt 0:00:28]} O-O {[%emt 0:01:17]} 7. O-O {[%emt 0:00:33]} dxc4 {[%emt 0:01:51]} 8. Ne5 {[%emt 0:01:20] Inhibits Nc6.} Nc6 {[%emt 0:00:51]} 9. Bxc6 {[%emt 0:02:16]} (9. Nxc4 Qxd4 (9... Nxd4 10. Bf4 $11) 10. Qxd4 Nxd4 $11) 9... bxc6 {[%emt 0:00:02]} 10. Nxc6 {[%emt 0:00:07] A dynamic duo of knights.} Qe8 {[%emt 0:00:06]} 11. Nxe7+ {[%emt 0:00:30]} Qxe7 {[%emt 0:00:02]} 12. Qa4 {[%emt 0:00:12]} a5 {[%emt 0:12:13]} 13. Qxc4 {[%emt 0:03:25]} Ba6 {[%emt 0:04:24]} 14. Qc5 {[%emt 0:16:43]} Qxc5 {[%emt 0:01:09]} 15. dxc5 {[%emt 0:00:08]} Nd5 {[%emt 0:00:09]} 16. Nxd5 {[%emt 0:00:57]} exd5 {[%emt 0:00:05]} 17. Re1 {[%emt 0:06:08]} a4 {[%emt 0:28:20]} 18. Bd2 {[%emt 0:05:46]} d4 {[%emt 0:04:58]} 19. Bf4 {[%emt 0:06:43]} Rfe8 {[%emt 0:10:49]} 20. Rad1 {[%emt 0:00:29]} Bxe2 {[%emt 0:02:14]} 21. Rxd4 {[%emt 0:00:10]} c6 {[%emt 0:00:18]} 22. h3 {[%emt 0:02:56]} Bf3 {[%emt 0:10:41]} 23. Re3 {[%emt 0:06:24]} Rxe3 {[%emt 0:00:49]} 24. fxe3 $14 {[%emt 0:03:34][%mdl 4096] Endgame KRB-KRB. White is a pawn up.} Bd5 {[%emt 0:02:32]} 25. a3 {[%emt 0:00:35]} Ra5 {[%emt 0:01:24]} 26. Bd6 {[%emt 0:00:59]} Bb3 {[%emt 0:17:19]} (26... Be6 $14 {was preferable.}) 27. Rb4 $16 {[%emt 0:01:31] White is more active.} Rb5 {[%emt 0:00:12]} 28. Rxb5 {[%emt 0:00:20]} cxb5 {[%emt 0:00:01] KB-KB. White is a pawn up.} 29. c6 {[%emt 0:00:14]} h5 {[%emt 0:01:52]} 30. e4 {[%emt 0:01:11]} f6 {[%emt 0:00:31]} 31. Kf2 {[%emt 0:01:20]} Kf7 {[%emt 0:00:01]} 32. Ke3 {[%emt 0:01:08]} Ke8 {[%emt 0:00:34]} (32... Ke6 $16 33. Bb8 g6) 33. Kd4 $18 {[%emt 0:01:47]} Kd8 {[%emt 0:00:31]} 34. Kc5 {[%emt 0:00:09]} Bc4 $2 {[%emt 0:00:30]} (34... Bc2 {was necessary.} 35. e5 (35. Kxb5 Bxe4 36. Kb6 g5 $16) 35... fxe5 36. Bxe5 (36. Kxb5 e4 $16) 36... g6 37. Kxb5 Kc8) 35. Bf8 {[%emt 0:00:33]} g6 {[%emt 0:00:55]} 36. Bg7 {[%emt 0:02:24]} 1-0

[Event "German Bundesliga 2024-25"]
[Site "Germany"]
[Date "2025.01.12"]
[Round "6.14"]
[White "Sadhwani, Raunak"]
[Black "Socko, Bartosz"]
[Result "0-1"]
[Annotator "RC"]
[ECO "A29"]
[WhiteElo "2675"]
[BlackElo "2553"]
[PlyCount "100"]
[EventDate "2024.09.27"]
[EventType "team-tourn"]
[EventCountry "GER"]
[SourceTitle "playchess.com"]
[Source "ChessBase"]
[SourceQuality "1"]
[WhiteTeam "Duesseldorf"]
[BlackTeam "St. Pauli"]
[TimeControl "40/5400+30:1800+30"]

1. c4 {[%emt 0:00:02]} e5 {[%emt 0:00:21]} 2. Nc3 {[%emt 0:00:06]} Nf6 {[%emt 0:00:46]} 3. Nf3 {[%emt 0:00:06]} Nc6 {[%emt 0:00:05]} 4. g3 {[%emt 0:00:05]} g6 {[%emt 0:02:14]} 5. Bg2 {[%emt 0:01:50]} Bg7 {[%emt 0:02:06]} 6. d4 {[%emt 0:00:19]} exd4 {[%emt 0:01:21]} 7. Nxd4 {[%emt 0:00:06]} O-O {[%emt 0:04:25]} 8. Nc2 {[%emt 0:01:18]} d6 {[%emt 0:00:20]} 9. O-O {[%emt 0:02:23]} Be6 {[%emt 0:00:57]} 10. b3 {[%emt 0:01:55]} Qd7 {[%emt 0:01:57]} 11. Re1 {[%emt 0:03:16]} Bh3 {[%emt 0:01:34]} 12. Bf3 {[%emt 0:09:47]} Rfe8 {[%emt 0:06:05]} 13. Bb2 {[%emt 0:00:40]} Ne5 {[%emt 0:09:35]} 14. Bh1 {[%emt 0:01:14]} Rad8 {[%emt 0:00:32]} 15. e4 {[%emt 0:02:03]} h5 {[%emt 0:02:42]} 16. Ne3 {[%emt 0:02:42]} c6 {[%emt 0:02:04]} 17. f3 {[%emt 0:01:29]} a6 {[%emt 0:02:00]} 18. a4 {[%emt 0:04:10]} Qc7 {[%emt 0:02:27]} 19. Bg2 {[%emt 0:00:26]} Bxg2 {[%emt 0:01:18]} 20. Kxg2 {[%emt 0:00:04]} Nfd7 {[%emt 0:03:54]} 21. Rb1 {[%emt 0:03:13]} Nc5 {[%emt 0:02:05]} 22. Ba1 {[%emt 0:00:07]} a5 {[%emt 0:03:28]} 23. Re2 {[%emt 0:00:54]} Qe7 {[%emt 0:04:31]} 24. Qc2 {[%emt 0:03:05]} h4 {[%emt 0:01:50]} 25. Rf1 {[%emt 0:01:11]} Qd7 {[%emt 0:04:41]} 26. Qd1 {[%emt 0:08:39]} h3+ {[%emt 0:03:33]} 27. Kh1 {[%emt 0:00:05]} f5 {[%emt 0:05:09]} 28. exf5 {[%emt 0:00:08]} gxf5 {[%emt 0:00:08]} 29. Na2 {[%emt 0:00:27]} Qf7 {[%emt 0:13:10]} 30. g4 {[%emt 0:05:12]} fxg4 {[%emt 0:01:20]} 31. fxg4 {[%emt 0:00:08]} Qg6 {[%emt 0:00:03]} 32. Nf5 {[%emt 0:00:18]} Ne6 {[%emt 0:06:33]} 33. Re3 {[%emt 0:01:04]} Ng5 {[%emt 0:00:27]} 34. Nc1 {[%emt 0:02:47]} Nxc4 {[%emt 0:10:34]} 35. Ne7+ {[%emt 0:05:32]} Rxe7 {[%emt 0:00:05]} 36. Rxe7 {[%emt 0:00:02]} Bxa1 {[%emt 0:00:25]} 37. bxc4 {[%emt 0:00:05]} Bf6 {[%emt 0:00:44]} 38. Re3 {[%emt 0:00:23]} d5 {[%emt 0:00:14]} 39. cxd5 {[%emt 0:00:09]} cxd5 {[%emt 0:00:34]} 40. Qb3 {[%emt 0:00:01]} Bd4 {[%emt 0:02:36]} 41. Re2 {[%emt 0:30:57]} Qc6 {[%emt 0:09:56]} 42. Nd3 {[%emt 0:00:00]} Rf8 {[%emt 0:00:00]} 43. Rxf8+ {[%emt 0:00:00]} Kxf8 {[%emt 0:00:00]} 44. Qa3+ {[%emt 0:00:00]} Kg8 {[%emt 0:00:00]} 45. Nf4 {[%emt 0:00:00]} Be3 {[%emt 0:02:06]} 46. Rxe3 {[%emt 0:00:00]} d4+ {[%emt 0:01:12]} 47. Rf3 {[%emt 0:00:00]} Qxf3+ {[%emt 0:02:04]} 48. Qxf3 {[%emt 0:00:00]} Nxf3 {[%emt 0:00:06]} 49. Nxh3 {[%emt 0:00:00]} b5 {[%emt 0:00:30]} 50. axb5 {[%emt 0:00:00]} a4 {[%emt 0:00:07]} 0-1

[Event "German Bundesliga 2024-25"]
[Site "Germany"]
[Date "2025.01.12"]
[Round "6.14"]
[White "Lokander, Martin"]
[Black "Neef, Maximilian"]
[Result "1/2-1/2"]
[Annotator "TA"]
[ECO "C01"]
[WhiteElo "2467"]
[BlackElo "2469"]
[PlyCount "108"]
[EventDate "2024.09.27"]
[EventType "team-tourn"]
[EventCountry "GER"]
[SourceTitle "playchess.com"]
[Source "ChessBase"]
[SourceQuality "1"]
[WhiteTeam "Bayern Muenchen"]
[BlackTeam "TU Dresden"]
[TimeControl "40/5400+30:1800+30"]

{[%evp 18,108,20,22,28,0,16,0,15,0,0,0,0,-66,-70,-57,0,0,0,0,0,0,0,0,0,0,0,0,0,0,0,-5,-12,-14,-17,-16,-3,-18,0,0,0,-23,-10,-13,-11,-17,0,-4,0,-11,-8,-8,15,-16,0,0,0,-29,-36,-33,-37,-38,0,0,0,0,0,0,0,0,0,0,0,0,0,0,0,0,0,0,0,0,0,0,0,0,0,0,0,0,0,0,0]} 1. e4 {[%emt 0:00:04]} e6 {[%emt 0:00:08]} 2. d4 {[%emt 0:00:04]} d5 {[%emt 0:00:05]} 3. exd5 {[%emt 0:00:05]} exd5 {[%emt 0:00:07]} 4. Nf3 {[%emt 0:00:03]} Bd6 {[%emt 0:00:51]} 5. Bd3 {[%emt 0:00:06]} Nc6 {[%emt 0:00:43]} 6. O-O {[%emt 0:00:06]} Nge7 {[%emt 0:01:17]} 7. Re1 {[%emt 0:00:09]} Bg4 {[%emt 0:02:02]} 8. c3 {[%emt 0:00:50]} Qd7 {[%emt 0:02:31]} 9. Nbd2 {[%emt 0:04:17][%cal Bb1d2,Bd2f1,Bf1e3][%mdl 32]} f6 {[%emt 0:16:06]} 10. Nf1 {[%emt 0:02:12]} O-O-O {[%emt 0:01:49]} 11. Ne3 {[%emt 0:01:16]} Bh5 {[%emt 0:05:04]} 12. b4 {[%emt 0:00:13]} Rde8 {[%emt 0:02:25]} 13. a4 {[%emt 0:00:46]} Nd8 {[%emt 0:05:06]} 14. b5 {[%emt 0:05:12]} Ne6 $1 {[%emt 0:03:53]} 15. Ba3 {[%emt 0:02:25]} (15. Nf1 $11) 15... Bxa3 $1 $15 {[%emt 0:07:30]} 16. Rxa3 {[%emt 0:00:05]} Ng5 {[%emt 0:00:15]} (16... Nf4 $15) 17. Be2 $11 {[%emt 0:00:23]} (17. Ne5 Qd6 18. Qxh5 Qxa3 19. Qg4+ Kb8 20. Nd7+ Ka8) 17... Nxf3+ {[%emt 0:00:16]} 18. Bxf3 {[%emt 0:00:04]} Bxf3 {[%emt 0:00:07]} 19. Qxf3 {[%emt 0:00:04]} Nf5 $1 {[%emt 0:00:20]} 20. Nc2 {[%emt 0:05:44]} (20. Qxf5 $2 Qxf5 21. a5 Rxe3 22. fxe3 Re8 $19) 20... Rxe1+ {[%emt 0:09:19]} 21. Nxe1 {[%emt 0:00:10]} Re8 {[%emt 0:01:29]} 22. Ra1 {[%emt 0:00:58]} Qe6 {[%emt 0:05:36] [#] ( -> ...Qxe1+)} 23. Nd3 {[%emt 0:01:10]} Qe4 {[%emt 0:03:39]} 24. Qxe4 {[%emt 0:02:45]} dxe4 {[%emt 0:02:48][%mdl 4096] Endgame. KRN-KRN} 25. Nb4 {[%emt 0:01:56]} Nd6 {[%emt 0:03:25]} 26. Kf1 {[%emt 0:04:53]} f5 {[%emt 0:02:07]} 27. g3 {[%emt 0:01:00]} g5 {[%emt 0:02:13]} 28. Ke2 {[%emt 0:01:02]} Re6 {[%emt 0:02:08]} 29. h4 {[%emt 0:01:30]} gxh4 {[%emt 0:03:14]} 30. gxh4 {[%emt 0:00:05]} Rg6 {[%emt 0:00:07] Wards off Rg1} 31. h5 {[%emt 0:04:46]} Rg4 {[%emt 0:07:18]} 32. Nd5 {[%emt 0:04:19]} f4 {[%emt 0:05:33] [#] And now ...f3+ would win.} 33. Nf6 {[%emt 0:06:19]} f3+ {[%emt 0:03:22]} 34. Kd2 {[%emt 0:00:04]} Rf4 {[%emt 0:01:55]} 35. Nd5 {[%emt 0:00:58]} Nc4+ {[%emt 0:01:18]} 36. Kc2 {[%emt 0:00:07]} Rh4 {[%emt 0:00:59][%cal Oh4h2] White must now prevent ...Rh2!} 37. Rg1 {[%emt 0:00:09]} c6 {[%emt 0:01:10]} (37... Rxh5 $2 38. Rg8+ Kd7 39. Nf6+ Ke7 40. Nxh5 $18) 38. bxc6 {[%emt 0:05:20]} bxc6 {[%emt 0:00:01]} 39. Nf6 {[%emt 0:00:30][%cal Og1g4]} Rf4 {[%emt 0:00:55]} (39... Kd8 $5 40. Rg4 Ne3+ (40... Rxg4 41. Nxg4 a5 42. Kb3 $11) 41. fxe3 f2 42. Rxh4 (42. Rg8+ $2 Ke7 $19) 42... f1=Q (42... f1=R $2 43. Nxh7 Ke7 44. h6 $18) 43. Nxe4 Qc4 $11) 40. Nxh7 {[%emt 0:01:01] The position is equal.} e3 {[%emt 0:00:41]} 41. Kd3 {[%emt 0:30:43][%csl LRc4,LRe3]} ({Don't go for} 41. Rg8+ $2 Kd7 42. Rg7+ Kd6 43. Rg6+ Kc7 44. Rg7+ Kb6 $19) 41... exf2 {[%emt 0:10:02]} 42. Rf1 {[%emt 0:00:00]} Nb2+ {[%emt 0:01:45]} 43. Ke3 {[%emt 0:00:00]} Rf5 {[%emt 0:00:33]} (43... Rf7 $5 44. Ng5 $8 Rf5 $11) 44. h6 {[%emt 0:00:00]} Rh5 {[%emt 0:03:15]} 45. Nf6 {[%emt 0:00:00]} Rxh6 {[%emt 0:00:55]} 46. Ne4 {[%emt 0:00:00]} Nxa4 {[%emt 0:06:51]} 47. Rxf2 {[%emt 0:00:00]} Rh3 {[%emt 0:00:16]} 48. Rxf3 {[%emt 0:00:00]} Rxf3+ {[%emt 0:00:24]} 49. Kxf3 {[%emt 0:00:00] KN-KN} Nb2 {[%emt 0:03:34]} 50. Ke3 {[%emt 0:00:00]} Kc7 {[%emt 0:01:13]} 51. Kd2 {[%emt 0:00:00]} Kb6 {[%emt 0:00:15]} 52. Nd6 {[%emt 0:00:00]} Kc7 {[%emt 0:00:19]} 53. Ne4 {[%emt 0:00:00]} Kb6 {[%emt 0:00:23]} 54. Nd6 {[%emt 0:00:00]} Kc7 {[%emt 0:00:06] Weighted Error Value: White=0.07 (flawless) /Black=0.05 (flawless) .  Mistake:       	White=1     	Black=1      Inaccurate:     	White=3     	Black=1      OK:         	White=14    	Black=23     Best:        	White=2     	Black=1      Strong:       	---       	Black=3} 1/2-1/2

[Event "German Bundesliga 2024-25"]
[Site "Germany"]
[Date "2025.01.12"]
[Round "6.15"]
[White "Nielsen, Peter Heine"]
[Black "Gustafsson, Jan"]
[Result "1/2-1/2"]
[Annotator "TA"]
[ECO "D27"]
[WhiteElo "2618"]
[BlackElo "2598"]
[PlyCount "41"]
[EventDate "2024.09.27"]
[EventType "team-tourn"]
[EventCountry "GER"]
[SourceTitle "playchess.com"]
[Source "ChessBase"]
[SourceQuality "1"]
[WhiteTeam "St. Pauli"]
[BlackTeam "Duesseldorf"]
[TimeControl "40/5400+30:1800+30"]

{[%evp 23,41,16,21,22,35,32,34,23,31,20,23,14,22,14,14,0,18,20,18,0]} 1. d4 {[%emt 0:00:05]} d5 {[%emt 0:00:12]} 2. c4 {[%emt 0:00:24]} dxc4 {[%emt 0:00:09]} 3. Nf3 {[%emt 0:03:33]} Nf6 {[%emt 0:02:12]} 4. e3 {[%emt 0:00:33]} e6 {[%emt 0:00:12]} 5. Bxc4 {[%emt 0:00:21]} c5 {[%emt 0:00:09]} 6. O-O {[%emt 0:01:50]} a6 {[%emt 0:00:20]} 7. dxc5 {[%emt 0:03:21]} Bxc5 {[%emt 0:03:29]} 8. Qxd8+ {[%emt 0:00:27]} Kxd8 {[%emt 0:00:07]} 9. Nbd2 {[%emt 0:00:23]} Ke7 {[%emt 0:08:36]} 10. Be2 {[%emt 0:04:54]} Nbd7 {[%emt 0:10:32]} 11. b3 {[%emt 0:09:46]} b6 {[%emt 0:01:51][%cal Bb7b6,Bb6b5][%mdl 32]} 12. Bb2 {[%emt 0:01:16]} Bb7 {[%emt 0:03:19]} 13. Ne1 {[%emt 0:11:23][%cal Bf3e1,Be1d3,Bd3f4][%mdl 32]} b5 {[%emt 0:06:26]} 14. a4 {[%emt 0:02:24]} Bb4 {[%emt 0:09:49]} 15. Ndf3 {[%emt 0:24:01] White is slightly better.} bxa4 {[%emt 0:03:15]} 16. Nd3 {[%emt 0:00:42]} a5 {[%emt 0:03:43]} 17. Rxa4 {[%emt 0:02:18]} Bc6 {[%emt 0:09:45] The position is equal.} 18. Raa1 {[%emt 0:03:18]} Bd5 {[%emt 0:03:31]} 19. Nd4 {[%emt 0:02:51]} Rhc8 {[%emt 0:06:03]} 20. Rfc1 {[%emt 0:03:39]} Ne4 {[%emt 0:10:53]} 21. Nf4 {[%emt 0:07:09] Weighted Error Value: White=0.04 (flawless) /Black=0.05 (flawless) .  OK:         	White=3     	Black=3} 1/2-1/2